[Event "Czech Youth U12 Boys 2024"]
[Site "Kouty nad Desnou"]
[Date "2024.03.13"]
[Round "6.8"]
[White "Sochor, Antonin"]
[Black "Krisica, Lukas"]
[Result "0-1"]
[ECO "B41"]
[WhiteElo "1779"]
[BlackElo "1531"]
[Annotator "NA RC"]
[PlyCount "134"]
[EventDate "2024.03.10"]
[EventType "swiss"]
[EventCountry "CZE"]
[SourceTitle "playchess.com"]
[Source "ChessBase"]
[SourceQuality "1"]
[TimeControl "40/5400+30:1800+30"]

1. e4 {[%emt 0:00:01]} c5 {[%emt 0:01:14]} 2. Nf3 {[%emt 0:00:10]} e6 {[%emt 0:00:41]} 3. d4 {[%emt 0:00:13]} cxd4 {[%emt 0:01:16]} 4. Nxd4 {[%emt 0:00:11]} a6 {[%emt 0:01:32]} 5. c4 {[%emt 0:00:26]} b6 {[%emt 0:00:59]} 6. Nc3 {[%emt 0:01:07]} Bb7 {[%emt 0:00:51]} 7. Be3 {[%emt 0:04:51]} d6 {[%emt 0:02:32]} 8. Be2 {[%emt 0:03:01]} Nd7 9. O-O {[%emt 0:03:57]} Ngf6 {[%emt 0:06:41]} 10. f3 {[%emt 0:01:20]} Be7 {[%emt 0:03:04]} 11. Qd2 {[%emt 0:04:22]} O-O {[%emt 0:03:28]} 12. Rad1 {[%emt 0:01:17]} Rc8 {[%emt 0:03:28]} 13. Rfe1 {[%emt 0:02:14]} Qc7 {[%emt 0:02:49]} 14. Bf1 {[%emt 0:01:15]} Rfd8 {[%emt 0:03:45]} 15. Qf2 {[%emt 0:05:31]} Nc5 {[%emt 0:09:12]} 16. b4 {[%emt 0:05:54]} Ncd7 {[%emt 0:00:56]} 17. Rc1 {[%emt 0:00:42]} Ne5 {[%emt 0:00:40]} 18. Nd1 {[%emt 0:04:10]} Qb8 {[%emt 0:08:04]} 19. Nb2 {[%emt 0:06:55]} Rc7 {[%emt 0:04:38]} 20. Nb3 {[%emt 0:04:12]} Rdc8 {[%emt 0:05:40]} 21. Bxb6 {[%emt 0:02:15]} Rc6 {[%emt 0:00:55]} 22. Na5 {[%emt 0:04:09]} d5 {[%emt 0:02:21]} 23. Nxc6 {[%emt 0:05:14]} Rxc6 {[%emt 0:00:24]} 24. exd5 {[%emt 0:10:41]} exd5 {[%emt 0:00:35]} 25. Bd4 {[%emt 0:02:39]} Ng6 {[%emt 0:04:32]} 26. c5 {[%emt 0:01:49]} Bd8 {[%emt 0:11:02]} 27. g3 {[%emt 0:11:22]} Bc8 {[%emt 0:01:50]} 28. a3 {[%emt 0:02:59]} Bc7 {[%emt 0:02:05]} 29. Nd3 {[%emt 0:06:19]} h6 {[%emt 0:04:12]} 30. Rc2 {[%emt 0:01:57]} Nh5 {[%emt 0:01:04]} 31. Kg2 {[%emt 0:01:05]} Bf5 {[%emt 0:01:08]} 32. Rb2 {[%emt 0:00:56]} Bxd3 {[%emt 0:00:46]} 33. Bxd3 {[%emt 0:01:32]} Nhf4+ {[%emt 0:00:13]} 34. gxf4 {[%emt 0:00:37]} Nxf4+ {[%emt 0:00:14]} 35. Kh1 {[%emt 0:00:28]} Nxd3 {[%emt 0:00:07]} 36. Qe2 {[%emt 0:01:14]} Nxe1 {[%emt 0:01:12]} 37. Qxe1 {[%emt 0:00:17]} Rg6 {[%emt 0:01:24]} 38. Re2 {[%emt 0:00:52]} Kh7 {[%emt 0:02:18]} 39. Be5 {[%emt 0:01:01]} Bxe5 {[%emt 0:01:31]} 40. Rxe5 {[%emt 0:00:07]} Qd8 {[%emt 0:01:18]} 41. Qd2 {[%emt 0:30:41]} d4 {[%emt 0:31:14]} 42. Re4 {[%emt 0:00:29]} Qf6 {[%emt 0:00:39]} 43. Qd1 {[%emt 0:00:48]} d3 {[%emt 0:01:36]} 44. Re1 {[%emt 0:00:27]} d2 {[%emt 0:00:16]} 45. Rf1 {[%emt 0:00:14]} Qd4 {[%emt 0:01:00]} 46. Qe2 {[%emt 0:00:41]} Re6 {[%emt 0:00:24]} 47. Qd1 {[%emt 0:00:19]} Qe3 {[%emt 0:00:11]} 48. Qc2+ {[%emt 0:00:38]} Kg8 {[%emt 0:00:30]} 49. c6 {[%emt 0:00:17]} Qe1 {[%emt 0:01:15]} 50. Kg2 {[%emt 0:01:03]} Re2+ {[%emt 0:00:50]} 51. Kg1 {[%emt 0:00:10]} Qxf1+ {[%emt 0:01:38]} 52. Kxf1 {[%emt 0:00:07]} Re1+ {[%emt 0:00:09]} 53. Kf2 {[%emt 0:00:18]} d1=Q {[%emt 0:00:10]} 54. Qxd1 {[%emt 0:00:12]} Rxd1 {[%emt 0:00:03]} 55. a4 {[%emt 0:00:17]} Rc1 {[%emt 0:00:47]} 56. b5 {[%emt 0:00:10]} axb5 {[%emt 0:00:27]} 57. axb5 {[%emt 0:00:10]} Rc5 {[%emt 0:00:09]} 58. Ke3 {[%emt 0:00:24]} Rxb5 {[%emt 0:00:40]} 59. Kd4 {[%emt 0:00:32]} Rb8 {[%emt 0:00:22]} 60. Kd5 {[%emt 0:00:22]} Kf8 {[%emt 0:01:27]} 61. Kd6 {[%emt 0:00:34]} Ke8 {[%emt 0:01:12]} 62. Kc7 {[%emt 0:00:12]} Rd8 {[%emt 0:00:27]} 63. Kb7 {[%emt 0:00:37]} Ke7 {[%emt 0:00:13]} 64. c7 {[%emt 0:00:28]} Rg8 {[%emt 0:00:29]} 65. c8=Q {[%emt 0:00:11]} Rxc8 {[%emt 0:00:07]} 66. Kxc8 {[%emt 0:00:08]} f5 {[%emt 0:00:05]} 67. Kc7 {[%emt 0:00:42]} Ke6 {[%emt 0:00:13]} 0-1

[Event "Czech Youth U12 Boys 2024"]
[Site "Kouty nad Desnou"]
[Date "2024.03.13"]
[Round "6.9"]
[White "Fadrny, Jachym"]
[Black "Havlik, David"]
[Result "1/2-1/2"]
[ECO "A56"]
[WhiteElo "1729"]
[BlackElo "1580"]
[Annotator "NA RC"]
[PlyCount "89"]
[EventDate "2024.03.10"]
[EventType "swiss"]
[EventCountry "CZE"]
[SourceTitle "playchess.com"]
[Source "ChessBase"]
[SourceQuality "1"]
[TimeControl "40/5400+30:1800+30"]

1. d4 {[%emt 0:00:11]} Nf6 {[%emt 0:00:08]} 2. c4 {[%emt 0:00:16]} c5 {[%emt 0:00:05]} 3. e3 {[%emt 0:00:23]} g6 {[%emt 0:01:16]} 4. Nc3 {[%emt 0:01:57]} Bg7 {[%emt 0:03:51]} 5. Nf3 {[%emt 0:02:16]} O-O {[%emt 0:04:41]} 6. Bd3 {[%emt 0:01:20]} cxd4 {[%emt 0:07:37]} 7. exd4 {[%emt 0:00:58]} d5 {[%emt 0:01:02]} 8. b3 {[%emt 0:02:22]} Bg4 {[%emt 0:10:19]} 9. Be3 {[%emt 0:17:10]} Nc6 {[%emt 0:04:57]} 10. Be2 {[%emt 0:03:53]} dxc4 {[%emt 0:18:00]} 11. bxc4 {[%emt 0:02:07]} Rc8 {[%emt 0:12:36]} 12. Rb1 {[%emt 0:06:42]} b6 {[%emt 0:06:59]} 13. Nb5 {[%emt 0:03:23]} a6 {[%emt 0:03:43]} 14. Na3 {[%emt 0:00:18]} Ne4 {[%emt 0:05:42]} 15. Qc2 {[%emt 0:12:08]} Bf5 {[%emt 0:11:36]} 16. Bd3 {[%emt 0:06:25]} Nd6 {[%emt 0:01:53]} 17. d5 {[%emt 0:01:26]} Bxd3 {[%emt 0:01:08]} 18. Qxd3 {[%emt 0:00:29]} Ne5 {[%emt 0:00:27]} 19. Nxe5 {[%emt 0:00:41]} Bxe5 {[%emt 0:00:03]} 20. Bxb6 {[%emt 0:00:20]} Qd7 {[%emt 0:00:26]} 21. c5 {[%emt 0:05:12]} Nf5 {[%emt 0:02:14]} 22. Nc4 {[%emt 0:02:50]} Bg7 {[%emt 0:00:32]} 23. O-O {[%emt 0:01:16]} Nd4 {[%emt 0:01:10]} 24. Ne3 {[%emt 0:05:16]} f5 {[%emt 0:00:42]} 25. Rfd1 {[%emt 0:02:40]} f4 {[%emt 0:01:00]} 26. c6 {[%emt 0:02:38]} Nxc6 {[%emt 0:00:26]} 27. dxc6 {[%emt 0:01:16]} Qxd3 {[%emt 0:00:04]} 28. Rxd3 {[%emt 0:00:13]} fxe3 {[%emt 0:00:03]} 29. Rxe3 {[%emt 0:00:21]} Rxc6 {[%emt 0:00:34]} 30. Ba5 {[%emt 0:01:41]} Bd4 {[%emt 0:01:17]} 31. Re2 {[%emt 0:00:19]} e5 {[%emt 0:00:42]} 32. Kf1 {[%emt 0:03:31]} Rcf6 {[%emt 0:00:30]} 33. f3 {[%emt 0:00:50]} Rf4 {[%emt 0:00:36]} 34. Bd2 {[%emt 0:01:22]} Rh4 {[%emt 0:00:27]} 35. h3 {[%emt 0:02:25]} e4 {[%emt 0:00:30]} 36. f4 {[%emt 0:02:25]} e3 {[%emt 0:00:26]} 37. Bxe3 {[%emt 0:01:26]} Bxe3 {[%emt 0:00:04]} 38. Rxe3 {[%emt 0:00:10]} Rhxf4+ {[%emt 0:00:05]} 39. Kg1 {[%emt 0:00:27]} Rf2 {[%emt 0:00:28]} 40. Ra3 {[%emt 0:00:26]} Rd2 {[%emt 0:00:42]} 41. Rf1 {[%emt 0:30:58]} Rc8 {[%emt 0:30:56]} 42. Rxa6 {[%emt 0:02:39]} Rcc2 {[%emt 0:00:09]} 43. Ra1 {[%emt 0:00:17]} Rxg2+ {[%emt 0:00:25]} 44. Kf1 {[%emt 0:01:45]} Rgf2+ {[%emt 0:00:50]} 45. Kg1 {[%emt 0:00:30]} 1/2-1/2

[Event "Czech Youth U12 Boys 2024"]
[Site "Kouty nad Desnou"]
[Date "2024.03.13"]
[Round "6.10"]
[White "Hanzel, Martin"]
[Black "Gresek, Oskar"]
[Result "1/2-1/2"]
[ECO "B01"]
[WhiteElo "1474"]
[BlackElo "1629"]
[Annotator "NA RC"]
[PlyCount "73"]
[EventDate "2024.03.10"]
[EventType "swiss"]
[EventCountry "CZE"]
[SourceTitle "playchess.com"]
[Source "ChessBase"]
[SourceQuality "1"]
[TimeControl "40/5400+30:1800+30"]

1. e4 {[%emt 0:00:05]} d5 {[%emt 0:00:22]} 2. exd5 {[%emt 0:00:14]} Nf6 {[%emt 0:00:30]} 3. Nf3 {[%emt 0:00:16]} Nxd5 {[%emt 0:00:12]} 4. d4 {[%emt 0:00:38]} c6 {[%emt 0:02:41]} 5. c4 {[%emt 0:00:17]} Nf6 {[%emt 0:00:42]} 6. Nc3 {[%emt 0:00:46]} Bg4 {[%emt 0:01:48]} 7. Be2 {[%emt 0:00:26]} e6 {[%emt 0:01:35]} 8. Be3 {[%emt 0:00:35]} Nbd7 {[%emt 0:02:40]} 9. h3 {[%emt 0:01:42]} Bh5 {[%emt 0:02:46]} 10. g4 {[%emt 0:01:34]} Bg6 {[%emt 0:00:12]} 11. Nh4 {[%emt 0:01:04]} Be7 {[%emt 0:01:47]} 12. Nxg6 {[%emt 0:00:41]} hxg6 {[%emt 0:01:11]} 13. Qc2 {[%emt 0:01:00]} Nb6 {[%emt 0:01:54]} 14. O-O-O {[%emt 0:00:48]} Qc7 {[%emt 0:04:42]} 15. Kb1 {[%emt 0:01:16]} O-O-O {[%emt 0:01:22]} 16. Qb3 {[%emt 0:02:26]} Kb8 {[%emt 0:04:17]} 17. Bf3 {[%emt 0:06:23]} Ka8 {[%emt 0:06:14]} 18. d5 {[%emt 0:07:58]} exd5 {[%emt 0:05:54]} 19. cxd5 {[%emt 0:00:46]} Nfxd5 {[%emt 0:02:40]} 20. Nxd5 {[%emt 0:01:07]} Nxd5 {[%emt 0:01:34]} 21. Bxd5 {[%emt 0:00:29]} cxd5 {[%emt 0:01:14]} 22. Rxd5 {[%emt 0:01:37]} Rxd5 {[%emt 0:00:45]} 23. Qxd5 {[%emt 0:00:41]} Qc6 {[%emt 0:01:34]} 24. Qxc6 {[%emt 0:01:20]} bxc6 {[%emt 0:00:47]} 25. Rd1 {[%emt 0:01:10]} Rd8 {[%emt 0:02:50]} 26. Rxd8+ {[%emt 0:03:01]} Bxd8 {[%emt 0:00:10]} 27. Bd4 {[%emt 0:00:22]} f6 {[%emt 0:01:45]} 28. Kc2 {[%emt 0:00:50]} Kb7 {[%emt 0:02:01]} 29. Kc3 {[%emt 0:00:07]} a6 {[%emt 0:03:18]} 30. Bc5 {[%emt 0:00:39]} g5 {[%emt 0:01:46]} 31. Kd4 {[%emt 0:00:54]} g6 {[%emt 0:04:24]} 32. Ke4 {[%emt 0:00:29]} Kc7 {[%emt 0:01:17]} 33. f4 {[%emt 0:00:23]} gxf4 {[%emt 0:01:40]} 34. Kxf4 {[%emt 0:00:18]} Kd7 {[%emt 0:00:46]} 35. h4 {[%emt 0:00:13]} Ke6 {[%emt 0:01:30]} 36. h5 {[%emt 0:00:27]} Bc7+ {[%emt 0:04:00]} 37. Ke4 {[%emt 0:01:21]} 1/2-1/2

[Event "Czech Youth U12 Boys 2024"]
[Site "Kouty nad Desnou"]
[Date "2024.03.13"]
[Round "6.11"]
[White "Malek, Daniel"]
[Black "Novotny, Adam"]
[Result "1/2-1/2"]
[ECO "C42"]
[WhiteElo "2278"]
[BlackElo "2072"]
[Annotator "RC"]
[PlyCount "151"]
[EventDate "2024.03.10"]
[EventType "swiss"]
[EventCountry "CZE"]
[SourceTitle "playchess.com"]
[Source "ChessBase"]
[SourceQuality "1"]
[TimeControl "40/5400+30:1800+30"]

1. e4 {[%emt 0:00:04]} e5 {[%emt 0:00:12]} 2. Nf3 {[%emt 0:00:07]} Nf6 {[%emt 0:00:46]} 3. d3 {[%emt 0:02:08]} Nc6 {[%emt 0:02:36]} 4. Bg5 {[%emt 0:01:11]} Bc5 {[%emt 0:02:46]} 5. Nc3 {[%emt 0:01:52]} d6 {[%emt 0:03:26]} 6. Nd5 {[%emt 0:03:12]} Be6 {[%emt 0:05:58]} 7. Nxf6+ {[%emt 0:02:05]} gxf6 {[%emt 0:00:48]} 8. Bh4 {[%emt 0:02:12]} Qe7 {[%emt 0:04:48]} 9. Qd2 {[%emt 0:02:13]} Rg8 {[%emt 0:06:30]} 10. Qh6 {[%emt 0:04:27]} Rg6 {[%emt 0:04:48]} 11. Qxh7 {[%emt 0:02:19]} Qf8 {[%emt 0:07:35]} 12. Bxf6 {[%emt 0:12:21]} Rxf6 {[%emt 0:07:28]} 13. Qh4 {[%emt 0:00:19]} Qg7 {[%emt 0:03:46]} 14. Qg5 {[%emt 0:01:00]} Qxg5 {[%emt 0:03:02]} 15. Nxg5 {[%emt 0:00:24]} Bxf2+ {[%emt 0:02:28]} 16. Kd2 {[%emt 0:02:01]} Bc5 {[%emt 0:05:23]} 17. Be2 {[%emt 0:01:58]} Rg6 {[%emt 0:01:24]} 18. Nxe6 {[%emt 0:00:53]} Rxe6 {[%emt 0:00:53]} 19. Raf1 {[%emt 0:02:01]} Rg6 {[%emt 0:02:19]} 20. g3 {[%emt 0:01:44]} Rg5 {[%emt 0:02:51]} 21. c3 {[%emt 0:02:13]} a5 {[%emt 0:01:55]} 22. Rf6 {[%emt 0:01:27]} Ke7 {[%emt 0:05:09]} 23. Rhf1 {[%emt 0:02:09]} Rf8 {[%emt 0:01:40]} 24. R1f3 {[%emt 0:01:51]} Rg6 {[%emt 0:02:42]} 25. R6f5 {[%emt 0:00:35]} f6 {[%emt 0:01:53]} 26. Rh5 {[%emt 0:02:08]} Rfg8 {[%emt 0:01:51]} 27. Rff5 {[%emt 0:02:35]} Kd7 {[%emt 0:03:23]} 28. Rh7+ {[%emt 0:01:20]} Ne7 {[%emt 0:02:31]} 29. Bh5 {[%emt 0:03:09]} R6g7 {[%emt 0:03:00]} 30. Rxg7 {[%emt 0:00:29]} Rxg7 {[%emt 0:00:19]} 31. Rxf6 {[%emt 0:00:17]} d5 {[%emt 0:02:16]} 32. Bf3 {[%emt 0:07:54]} d4 {[%emt 0:02:13]} 33. c4 {[%emt 0:00:55]} Rg6 {[%emt 0:01:07]} 34. Rf8 {[%emt 0:03:22]} Rg8 {[%emt 0:01:26]} 35. Rf6 {[%emt 0:00:55]} Nc6 {[%emt 0:01:19]} 36. Rh6 {[%emt 0:07:19]} Rf8 {[%emt 0:00:42]} 37. Ke2 {[%emt 0:01:22]} Nb4 {[%emt 0:00:58]} 38. a3 {[%emt 0:01:00]} Nc6 {[%emt 0:00:33]} 39. Kf2 {[%emt 0:01:26]} Be7 {[%emt 0:01:53]} 40. h4 {[%emt 0:01:32]} Rf6 {[%emt 0:00:39]} 41. Rh7 {[%emt 0:31:34]} Nd8 {[%emt 0:30:58]} 42. Kg2 {[%emt 0:01:37]} Ne6 {[%emt 0:00:33]} 43. Rh5 {[%emt 0:01:21]} Nc5 {[%emt 0:01:01]} 44. Be2 {[%emt 0:05:04]} Kd6 {[%emt 0:00:41]} 45. b4 {[%emt 0:01:25]} axb4 {[%emt 0:00:09]} 46. axb4 {[%emt 0:00:09]} Nb3 {[%emt 0:00:39]} 47. c5+ {[%emt 0:00:34]} Kc6 {[%emt 0:00:19]} 48. Rxe5 {[%emt 0:00:28]} Bf8 {[%emt 0:01:17]} 49. Bd1 {[%emt 0:00:35]} Nc1 {[%emt 0:00:18]} 50. Ba4+ {[%emt 0:00:18]} b5 {[%emt 0:00:10]} 51. Bc2 {[%emt 0:00:43]} Bg7 {[%emt 0:00:53]} 52. Rf5 {[%emt 0:01:00]} Rxf5 {[%emt 0:00:19]} 53. exf5 {[%emt 0:00:07]} Kd5 {[%emt 0:00:17]} 54. Kf3 {[%emt 0:00:57]} Ke5 {[%emt 0:00:17]} 55. g4 {[%emt 0:01:25]} Na2 {[%emt 0:00:17]} 56. Bb1 {[%emt 0:01:56]} Nxb4 {[%emt 0:00:14]} 57. Kg3 {[%emt 0:01:26]} Na6 {[%emt 0:00:12]} 58. c6 {[%emt 0:00:49]} Nb4 {[%emt 0:00:07]} 59. Kf3 {[%emt 0:00:15]} Nxc6 {[%emt 0:00:20]} 60. Ba2 {[%emt 0:00:29]} b4 {[%emt 0:00:43]} 61. Be6 {[%emt 0:00:47]} Na5 {[%emt 0:01:07]} 62. g5 {[%emt 0:00:18]} b3 {[%emt 0:00:11]} 63. Bxb3 {[%emt 0:00:10]} Nxb3 {[%emt 0:00:07]} 64. f6 {[%emt 0:00:08]} Bxf6 {[%emt 0:00:39]} 65. gxf6 {[%emt 0:00:09]} Kxf6 {[%emt 0:00:06]} 66. Ke4 {[%emt 0:00:22]} c5 {[%emt 0:01:23]} 67. Kd5 {[%emt 0:00:19]} Na5 {[%emt 0:02:45]} 68. Kxc5 {[%emt 0:00:18]} Ke5 {[%emt 0:00:13]} 69. h5 {[%emt 0:00:14]} Nb7+ {[%emt 0:00:10]} 70. Kc4 {[%emt 0:00:11]} Nd6+ {[%emt 0:00:22]} 71. Kc5 {[%emt 0:00:27]} Nf5 {[%emt 0:00:12]} 72. Kc4 {[%emt 0:00:15]} Nd6+ {[%emt 0:00:37]} 73. Kc5 {[%emt 0:00:15]} Nf5 {[%emt 0:00:28]} 74. Kc4 {[%emt 0:00:25]} Kf6 {[%emt 0:00:11]} 75. Kd5 {[%emt 0:00:23]} Kg5 {[%emt 0:01:36]} 76. Ke5 1/2-1/2

[Event "Czech Youth U12 Boys 2024"]
[Site "Kouty nad Desnou"]
[Date "2024.03.13"]
[Round "6.12"]
[White "Zvolanek, Vojtech"]
[Black "Broz, Pavel"]
[Result "0-1"]
[ECO "B06"]
[WhiteElo "1411"]
[BlackElo "1911"]
[Annotator "RC"]
[PlyCount "124"]
[EventDate "2024.03.10"]
[EventType "swiss"]
[EventCountry "CZE"]
[SourceTitle "playchess.com"]
[Source "ChessBase"]
[SourceQuality "1"]
[TimeControl "40/5400+30:1800+30"]

1. e4 {[%emt 0:00:07]} g6 {[%emt 0:00:18]} 2. d4 {[%emt 0:02:00]} Bg7 {[%emt 0:02:15]} 3. Nf3 {[%emt 0:02:22]} e6 {[%emt 0:03:09]} 4. Nc3 {[%emt 0:02:32]} Ne7 {[%emt 0:04:26]} 5. Be3 {[%emt 0:01:53]} b6 {[%emt 0:03:57]} 6. Be2 {[%emt 0:01:21]} Bb7 {[%emt 0:03:50]} 7. Qd2 {[%emt 0:03:11]} h6 {[%emt 0:03:27]} 8. O-O-O {[%emt 0:01:05]} d6 {[%emt 0:05:29]} 9. Rhe1 {[%emt 0:04:17]} Nd7 {[%emt 0:06:29]} 10. e5 {[%emt 0:02:39]} dxe5 {[%emt 0:02:41]} 11. dxe5 {[%emt 0:09:28]} Nc6 {[%emt 0:06:25]} 12. Bf4 {[%emt 0:08:28]} a6 {[%emt 0:09:20]} 13. h4 {[%emt 0:04:50]} Ncxe5 {[%emt 0:01:56]} 14. Bxe5 {[%emt 0:03:02]} Nxe5 {[%emt 0:00:03]} 15. Qxd8+ {[%emt 0:01:22]} Rxd8 {[%emt 0:00:18]} 16. Rxd8+ {[%emt 0:03:24]} Kxd8 {[%emt 0:01:20]} 17. Rd1+ {[%emt 0:00:59]} Ke7 {[%emt 0:08:55]} 18. Ne1 {[%emt 0:04:42]} Rd8 {[%emt 0:05:57]} 19. Rxd8 {[%emt 0:03:32]} Kxd8 {[%emt 0:00:50]} 20. g3 {[%emt 0:02:35]} Ke7 {[%emt 0:05:19]} 21. Kd2 {[%emt 0:06:10]} f5 {[%emt 0:05:12]} 22. f4 {[%emt 0:00:18]} Nf7 {[%emt 0:02:07]} 23. Nf3 {[%emt 0:02:09]} e5 {[%emt 0:01:56]} 24. Ke3 {[%emt 0:05:43]} e4 {[%emt 0:01:55]} 25. Nd4 {[%emt 0:01:00]} Bxd4+ {[%emt 0:02:09]} 26. Kxd4 {[%emt 0:00:17]} c5+ {[%emt 0:01:50]} 27. Ke3 {[%emt 0:00:53]} Nd6 {[%emt 0:01:34]} 28. a3 {[%emt 0:02:08]} Ke6 {[%emt 0:03:18]} 29. b3 {[%emt 0:01:00]} b5 {[%emt 0:00:53]} 30. Nd1 {[%emt 0:01:29]} c4 {[%emt 0:01:16]} 31. b4 {[%emt 0:01:44]} Nf7 {[%emt 0:00:52]} 32. c3 {[%emt 0:02:26]} g5 {[%emt 0:00:08]} 33. hxg5 {[%emt 0:00:36]} hxg5 {[%emt 0:00:07]} 34. Kd4 {[%emt 0:00:54]} gxf4 {[%emt 0:00:58]} 35. gxf4 {[%emt 0:00:14]} Nh8 {[%emt 0:01:17]} 36. Nf2 {[%emt 0:00:49]} Ng6 {[%emt 0:00:57]} 37. Nh3 {[%emt 0:00:15]} Ne7 {[%emt 0:00:33]} 38. Ke3 {[%emt 0:04:12]} Nc6 {[%emt 0:01:58]} 39. Bh5 {[%emt 0:01:02]} a5 {[%emt 0:01:05]} 40. Ng5+ {[%emt 0:01:14]} Kf6 {[%emt 0:00:34]} 41. Nh3 {[%emt 0:30:48]} Bc8 {[%emt 0:30:30]} 42. Bd1 {[%emt 0:00:46]} Be6 {[%emt 0:00:50]} 43. Ng5 {[%emt 0:01:03]} Bg8 {[%emt 0:00:28]} 44. Nh3 {[%emt 0:01:03]} Kg7 {[%emt 0:00:55]} 45. Be2 {[%emt 0:01:10]} Kh6 {[%emt 0:00:17]} 46. Ng5 {[%emt 0:00:45]} axb4 {[%emt 0:01:15]} 47. axb4 {[%emt 0:00:10]} Bd5 {[%emt 0:00:54]} 48. Bd1 {[%emt 0:00:27]} Kg6 {[%emt 0:00:11]} 49. Be2 {[%emt 0:00:35]} Kf6 {[%emt 0:00:07]} 50. Bd1 {[%emt 0:00:09]} Ke7 {[%emt 0:00:20]} 51. Be2 {[%emt 0:00:14]} Be6 {[%emt 0:00:44]} 52. Bd1 {[%emt 0:00:20]} Kd6 {[%emt 0:00:13]} 53. Be2 {[%emt 0:00:54]} Bc8 {[%emt 0:00:32]} 54. Bd1 {[%emt 0:00:18]} Kd5 {[%emt 0:00:22]} 55. Be2 {[%emt 0:01:04]} Bd7 {[%emt 0:00:35]} 56. Bd1 {[%emt 0:00:09]} Ne7 {[%emt 0:00:43]} 57. Be2 {[%emt 0:00:19]} Nc8 {[%emt 0:00:24]} 58. Bd1 {[%emt 0:01:28]} Nb6 {[%emt 0:00:25]} 59. Nh3 {[%emt 0:00:19]} Na4 {[%emt 0:00:09]} 60. Bxa4 {[%emt 0:00:50]} bxa4 {[%emt 0:00:10]} 61. Kd2 {[%emt 0:00:12]} e3+ {[%emt 0:00:17]} 62. Kc2 {[%emt 0:01:35]} e2 {[%emt 0:00:09]} 0-1

[Event "Czech Youth U12 Boys 2024"]
[Site "Kouty nad Desnou"]
[Date "2024.03.14"]
[Round "7.1"]
[White "Honcharov, Makar"]
[Black "Kolar, Edvard"]
[Result "1/2-1/2"]
[ECO "B34"]
[WhiteElo "1872"]
[BlackElo "1759"]
[Annotator "NA RC"]
[PlyCount "128"]
[EventDate "2024.03.10"]
[EventType "swiss"]
[EventCountry "CZE"]
[SourceTitle "playchess.com"]
[Source "ChessBase"]
[SourceQuality "1"]
[TimeControl "40/5400+30:1800+30"]

1. e4 {[%emt 0:00:02]} c5 {[%emt 0:00:05]} 2. Nf3 {[%emt 0:00:08]} Nc6 {[%emt 0:00:28]} 3. d4 {[%emt 0:00:03]} cxd4 {[%emt 0:00:14]} 4. Nxd4 {[%emt 0:00:06]} g6 {[%emt 0:00:15]} 5. Nc3 {[%emt 0:00:05]} Bg7 {[%emt 0:00:11]} 6. Be3 {[%emt 0:00:05]} Nf6 {[%emt 0:00:17]} 7. Be2 {[%emt 0:00:02]} O-O {[%emt 0:01:16]} 8. Nb3 {[%emt 0:00:08]} d6 {[%emt 0:01:33]} 9. f4 {[%emt 0:00:09]} Bd7 {[%emt 0:03:40]} 10. g4 {[%emt 0:00:23] B72: Sicilian Dragon: 6 Be3, lines with h3+Bc4 and sidelines.} Ne8 {[%emt 0:12:48]} 11. Qd2 {[%emt 0:01:54]} Rc8 {[%emt 0:05:54]} 12. h4 {[%emt 0:01:29]} Nf6 {[%emt 0:02:28]} 13. Rg1 {[%emt 0:02:36]} Nb4 {[%emt 0:04:41]} 14. a3 {[%emt 0:02:20]} Nxe4 {[%emt 0:05:37]} 15. Nxe4 {[%emt 0:00:11]} Nxc2+ {[%emt 0:00:09]} 16. Kf2 {[%emt 0:00:11]} Nxa1 {[%emt 0:00:41]} 17. Rxa1 {[%emt 0:10:26]} Ba4 {[%emt 0:04:29]} 18. Nd4 {[%emt 0:03:37]} e5 {[%emt 0:01:54]} 19. Nf3 {[%emt 0:00:05]} (19. fxe5 $1 $15 dxe5 (19... Qxh4+ 20. Kg2 $19) 20. Nf3) 19... d5 {[%emt 0:10:34]} 20. Nc3 {[%emt 0:08:51]} exf4 {[%emt 0:09:05]} 21. Bxa7 {[%emt 0:07:05]} Bc6 {[%emt 0:07:27]} 22. Bd4 {[%emt 0:01:01]} Bxd4+ {[%emt 0:00:42]} 23. Qxd4 {[%emt 0:00:23]} Re8 {[%emt 0:05:22]} 24. Rd1 {[%emt 0:04:16]} Qe7 {[%emt 0:02:13]} 25. Qxf4 {[%emt 0:15:13]} Rcd8 {[%emt 0:07:12]} 26. Qd4 {[%emt 0:00:24]} Rd6 {[%emt 0:02:24]} 27. Bd3 {[%emt 0:11:28]} Qd7 {[%emt 0:03:51]} (27... Qf6 $16 28. Qxf6 Rxf6) 28. h5 {[%emt 0:02:24]} Rd8 {[%emt 0:05:21]} (28... Qd8 $16 29. g5 gxh5) 29. Rh1 {[%emt 0:03:41]} Qe7 {[%emt 0:03:15]} 30. g5 {[%emt 0:03:21]} Re6 {[%emt 0:00:49]} (30... Qf8 $142 31. Rh4 Re8) 31. Ne2 {[%emt 0:05:15]} Re4 32. Bxe4 {[%emt 0:01:33]} dxe4 {[%emt 0:00:36]} 33. Qe5 {[%emt 0:00:28]} Qxe5 {[%emt 0:00:19]} 34. Nxe5 {[%emt 0:00:18]} e3+ {[%emt 0:00:06]} 35. Kxe3 {[%emt 0:00:30]} Bxh1 {[%emt 0:00:11]} 36. hxg6 {[%emt 0:00:14]} hxg6 {[%emt 0:00:17]} 37. Ng4 {[%emt 0:01:32]} Bc6 {[%emt 0:01:15]} 38. Nf6+ {[%emt 0:04:27]} Kg7 {[%emt 0:00:42]} 39. Nd4 {[%emt 0:00:11]} Bd5 {[%emt 0:00:57]} 40. b4 Bc4 {[%emt 0:00:38]} 41. a4 {[%emt 0:31:43]} b6 {[%emt 0:30:31]} 42. b5 {[%emt 0:05:44]} Ra8 {[%emt 0:00:26]} 43. Ke4 {[%emt 0:03:04]} Rxa4 {[%emt 0:00:26]} 44. Ke5 {[%emt 0:00:14]} Ra5 {[%emt 0:00:26]} 45. Ne8+ {[%emt 0:00:11]} Kf8 {[%emt 0:00:39]} 46. Nd6 {[%emt 0:00:05]} Bd3 47. Kd5 {[%emt 0:00:22]} Ra1 {[%emt 0:01:05]} 48. Kc6 {[%emt 0:00:19]} Rg1 {[%emt 0:00:29]} 49. Nf3 {[%emt 0:00:34]} Rg3 {[%emt 0:00:26]} 50. Ne5 {[%emt 0:00:20] [#]} Bxb5+ $2 {[%emt 0:00:33]} 51. Kxb5 $4 {[%emt 0:00:57]} (51. Nxb5 $17 Rxg5 52. Nd7+ Kg7 53. Nxb6) 51... Rxg5 {[%emt 0:00:19]} 52. Ndxf7 {[%emt 0:00:29]} Rf5 {[%emt 0:00:31]} 53. Kxb6 $19 {[%emt 0:00:03]} Rxf7 {[%emt 0:00:40]} 54. Nxg6+ {[%emt 0:00:07]} Kg7 {[%emt 0:00:16]} 55. Ne5 {[%emt 0:00:23]} Re7 {[%emt 0:00:15]} 56. Nc6 {[%emt 0:00:24]} Re6 {[%emt 0:00:19]} 57. Kc5 {[%emt 0:00:38]} Kf6 {[%emt 0:00:05]} 58. Kd5 {[%emt 0:01:17]} Re1 {[%emt 0:00:29]} 59. Nd4 {[%emt 0:00:33]} Re8 {[%emt 0:01:01]} 60. Nc6 {[%emt 0:02:49]} Kf5 {[%emt 0:00:44]} 61. Kd6 {[%emt 0:00:47]} Ke4 {[%emt 0:00:42]} 62. Kd7 {[%emt 0:00:29]} Rh8 {[%emt 0:00:27]} 63. Kd6 {[%emt 0:00:26]} Rh5 {[%emt 0:00:08]} 64. Ne7 {[%emt 0:01:30]} Rh6+ {[%emt 0:00:23]} 1/2-1/2